Workbook

Sheet Esquema
E1: Redes de tuberías
A3: Hidráulica e hidrología | H3: 2012-2013 | AI3: Jaime García Palacios
A5: Caudales
A6: Diámetros | H6: 0.4 | W6: n | X6: = | Y6: 0.011 | AK6: Sentido Malla
A7: Longitudes | J7: 150 | M7: 0.6 | R7: 1.2 | AK7: 1 | AL7: 2
K8: 0.6 | V8: D | W8: 12 | X8: = | Y8: =F12 -> 0.5 | AA8: L | AB8: 12 | AC8: = | AD8: =D11 -> 100 | AF8: K | AG8: 12 | AH8: = | AI8: =4^(10/3)*$Y$6^2/PI()^2*AD8/Y8^(16/3) -> 5.021639975 | AK8: -1
E9: 0.5 | V9: D | W9: 14 | X9: = | Y9: =G16 -> 0.5 | AA9: L | AB9: 14 | AC9: = | AD9: =I15 -> 200 | AF9: K | AG9: 14 | AH9: = | AI9: =4^(10/3)*$Y$6^2/PI()^2*AD9/Y9^(16/3) -> 10.04327995 | AK9: 1
J10: 0.5 | V10: D | W10: 43 | X10: = | Y10: =J13 -> 0.5 | AA10: L | AB10: 43 | AC10: = | AD10: =K12 -> 150 | AF10: K | AG10: 43 | AH10: = | AI10: =4^(10/3)*$Y$6^2/PI()^2*AD10/Y10^(16/3) -> 7.532459963 | AK10: 1 | AL10: -1
D11: 100 | P11: 0.6 | V11: D | W11: 25 | X11: = | Y11: =K8 -> 0.6 | AA11: L | AB11: 25 | AC11: = | AD11: =J7 -> 150 | AF11: K | AG11: 25 | AH11: = | AI11: =4^(10/3)*$Y$6^2/PI()^2*AD11/Y11^(16/3) -> 2.848635309 | AL11: -1
F12: 0.5 | K12: 150 | V12: D | W12: 45 | X12: = | Y12: =O14 -> 0.6 | AA12: L | AB12: 45 | AC12: = | AD12: =M13 -> 200 | AF12: K | AG12: 45 | AH12: = | AI12: =4^(10/3)*$Y$6^2/PI()^2*AD12/Y12^(16/3) -> 3.798180411 | AL12: 1
B13: 1 | J13: 0.5 | M13: 200
O14: 0.6 | V14: SQext = | Y14: =B13-H6+P18-R7 -> 0 | AA14: =IF(Y14<>0,"El circuito no tiene caudales exteriores nulos","") -> 
I15: 200
G16: 0.5
J17: 0.5
P18: 0.6
V20: Iteración | Y20: 1 | AZ20: Caudales
H21: =H6 -> 0.4 | AD21: KQ2 | AF21: 2|KQ| | AK21: Q | AZ21: Diámetros | BG21: 0.4
J22: =J7 -> 150 | M22: =AK29 -> 0.5522665434 | R22: =R7 -> 1.2 | V22: Q | W22: 12 | X22: = | Y22: =E9 -> 0.5 | AD22: =$AK$8*$AI$8*Y22^2 -> -1.255409994 | AF22: =2*$AI$8*Y22 -> 5.021639975 | AK22: =Y22+$AK$8*AI25 -> 0.6388888889 | AZ22: Longitudes | BI22: 150 | BQ22: 1.2
K23: =K8 -> 0.6 | V23: Q | W23: 14 | X23: = | Y23: =J17 -> 0.5 | AD23: =$AK$9*$AI$9*Y23^2 -> 2.510819988 | AF23: =2*$AI$9*Y23 -> 10.04327995 | AK23: =Y23+$AK$9*AI25 -> 0.3611111111 | BJ23: 0.6
E24: =AK22 -> 0.6388888889 | V24: Q | W24: 42 | X24: = | Y24: =J10 -> 0.5 | AD24: =$AK$10*$AI$10*Y24^2 -> 1.883114991 | AF24: =2*$AI$10*Y24 -> 7.532459963 | AI24: DQ | AK24: =Y24+$AK$10*AI25 -> 0.3611111111
H25: =AK24 -> 0.3611111111 | J25: =AK28 -> 0.3133776545 | AC25: Suma | AD25: =SUM(AD22:AD24) -> 3.138524985 | AF25: =SUM(AF22:AF24) -> 22.59737989 | AI25: =-AD25/AF25 -> -0.1388888889
D26: =D11 -> 100 | P26: =AK30 -> 0.6477334566 | BC26: 100
F27: =F12 -> 0.5 | K27: =K12 -> 150 | AD27: KQ2 | AF27: 2|KQ| | AK27: Q | BE27: 0.5 | BJ27: 150
B28: =B13 -> 1 | J28: =J13 -> 0.5 | M28: =M13 -> 200 | V28: Q | W28: 42 | X28: = | Y28: =AK24 -> 0.3611111111 | AD28: =$AL$10*$AI$10*Y28^2 -> -0.9822420785 | AF28: =2*$AI$10*Y28 -> 5.440109973 | AK28: =Y28+AL$10*AI31 -> 0.3133776545 | BA28: 1 | BI28: 0.5 | BL28: 200
O29: =O14 -> 0.6 | V29: Q | W29: 25 | X29: = | Y29: =M7 -> 0.6 | AD29: =$AL$11*$AI$11*Y29^2 -> -1.025508711 | AF29: =2*$AI$11*Y29 -> 3.41836237 | AK29: =Y29+AL$11*AI31 -> 0.5522665434 | BN29: 0.6
I30: =I15 -> 200 | V30: Q | W30: 45 | X30: = | Y30: =P11 -> 0.6 | AD30: =$AL$12*$AI$12*Y30^2 -> 1.367344948 | AF30: =2*$AI$12*Y30 -> 4.557816494 | AI30: DQ | AK30: =Y30+AL$12*AI31 -> 0.6477334566 | BH30: 200
G31: =G16 -> 0.5 | AC31: Suma | AD31: =SUM(AD28:AD30) -> -0.6404058415 | AF31: =SUM(AF28:AF30) -> 13.41628884 | AI31: =-AD31/AF31 -> 0.04773345664 | BF31: 0.5
J32: =AK23 -> 0.3611111111
P33: =P18 -> 0.6 | BO33: 0.6
V35: Iteración | Y35: =Y20+1 -> 2
H36: =H21 -> 0.4 | AD36: KQ2 | AF36: 2|KQ| | AK36: Q
J37: =J22 -> 150 | M37: =AK44 -> 0.5510867771 | R37: =R22 -> 1.2 | V37: Q | W37: 12 | X37: = | Y37: =AK22 -> 0.6388888889 | AD37: =$AK$8*$AI$8*Y37^2 -> -2.049728045 | AF37: =2*$AI$8*Y37 -> 6.416539968 | AK37: =Y37+$AK$8*AI40 -> 0.6388702638
K38: =K23 -> 0.6 | V38: Q | W38: 14 | X38: = | Y38: =AK23 -> 0.3611111111 | AD38: =$AK$9*$AI$9*Y38^2 -> 1.309656105 | AF38: =2*$AI$9*Y38 -> 7.253479964 | AK38: =Y38+$AK$9*AI40 -> 0.3611297362
E39: =AK37 -> 0.6388702638 | V39: Q | W39: 42 | X39: = | Y39: =AK28 -> 0.3133776545 | AD39: =$AK$10*$AI$10*Y39^2 -> 0.7397294061 | AF39: =2*$AI$10*Y39 -> 4.721009271 | AI39: DQ | AK39: =Y39+$AK$10*AI40 -> 0.3133962796
H40: =AK39 -> 0.3133962796 | J40: =AK43 -> 0.3122165133 | AC40: Suma | AD40: =SUM(AD37:AD39) -> -0.000342534725 | AF40: =SUM(AF37:AF39) -> 18.3910292 | AI40: =-AD40/AF40 -> 1.862509821e-05
D41: =D26 -> 100 | P41: =AK45 -> 0.6489132229
F42: =F27 -> 0.5 | K42: =K27 -> 150 | AD42: KQ2 | AF42: 2|KQ| | AK42: Q
B43: =B28 -> 1 | J43: =J28 -> 0.5 | M43: =M28 -> 200 | V43: Q | W43: 42 | X43: = | Y43: =AK39 -> 0.3133962796 | AD43: =$AL$10*$AI$10*Y43^2 -> -0.7398173379 | AF43: =2*$AI$10*Y43 -> 4.721289857 | AK43: =Y43+AL$10*AI46 -> 0.3122165133
O44: =O29 -> 0.6 | V44: Q | W44: 25 | X44: = | Y44: =AK29 -> 0.5522665434 | AD44: =$AL$11*$AI$11*Y44^2 -> -0.8688290259 | AF44: =2*$AI$11*Y44 -> 3.14641195 | AK44: =Y44+AL$11*AI46 -> 0.5510867771
I45: =I30 -> 200 | V45: Q | W45: 45 | X45: = | Y45: =AK30 -> 0.6477334566 | AD45: =$AL$12*$AI$12*Y45^2 -> 1.593559373 | AF45: =2*$AI$12*Y45 -> 4.920417054 | AI45: DQ | AK45: =Y45+AL$12*AI46 -> 0.6489132229
G46: =G31 -> 0.5 | AC46: Suma | AD46: =SUM(AD43:AD45) -> -0.0150869907 | AF46: =SUM(AF43:AF45) -> 12.78811886 | AI46: =-AD46/AF46 -> 0.001179766224
J47: =AK38 -> 0.3611297362
P48: =P33 -> 0.6
V50: Iteración | Y50: =Y35+1 -> 3
H51: =H36 -> 0.4 | AD51: KQ2 | AF51: 2|KQ| | AK51: Q
J52: =J37 -> 150 | M52: =AK59 -> 0.5509746203 | R52: =R37 -> 1.2 | V52: Q | W52: 12 | X52: = | Y52: =AK37 -> 0.6388702638 | AD52: =$AK$8*$AI$8*Y52^2 -> -2.049608538 | AF52: =2*$AI$8*Y52 -> 6.416352911 | AK52: =Y52+$AK$8*AI55 -> 0.6385676833
K53: =K38 -> 0.6 | V53: Q | W53: 14 | X53: = | Y53: =AK38 -> 0.3611297362 | AD53: =$AK$9*$AI$9*Y53^2 -> 1.309791205 | AF53: =2*$AI$9*Y53 -> 7.253854078 | AK53: =Y53+$AK$9*AI55 -> 0.3614323167
E54: =AK52 -> 0.6385676833 | V54: Q | W54: 42 | X54: = | Y54: =AK43 -> 0.3122165133 | AD54: =$AK$10*$AI$10*Y54^2 -> 0.7342578037 | AF54: =2*$AI$10*Y54 -> 4.703516773 | AI54: DQ | AK54: =Y54+$AK$10*AI55 -> 0.3125190938
H55: =AK54 -> 0.3125190938 | J55: =AK58 -> 0.312406937 | AC55: Suma | AD55: =SUM(AD52:AD54) -> -0.00555952991 | AF55: =SUM(AF52:AF54) -> 18.37372376 | AI55: =-AD55/AF55 -> 0.0003025804666
D56: =D41 -> 100 | P56: =AK60 -> 0.6490253797
F57: =F42 -> 0.5 | K57: =K42 -> 150 | AD57: KQ2 | AF57: 2|KQ| | AK57: Q
B58: =B43 -> 1 | J58: =J43 -> 0.5 | M58: =M43 -> 200 | V58: Q | W58: 42 | X58: = | Y58: =AK54 -> 0.3125190938 | AD58: =$AL$10*$AI$10*Y58^2 -> -0.7356816856 | AF58: =2*$AI$10*Y58 -> 4.708075124 | AK58: =Y58+AL$10*AI61 -> 0.312406937
O59: =O44 -> 0.6 | V59: Q | W59: 25 | X59: = | Y59: =AK44 -> 0.5510867771 | AD59: =$AL$11*$AI$11*Y59^2 -> -0.8651209602 | AF59: =2*$AI$11*Y59 -> 3.139690503 | AK59: =Y59+AL$11*AI61 -> 0.5509746203
I60: =I45 -> 200 | V60: Q | W60: 45 | X60: = | Y60: =AK45 -> 0.6489132229 | AD60: =$AL$12*$AI$12*Y60^2 -> 1.599369601 | AF60: =2*$AI$12*Y60 -> 4.929378984 | AI60: DQ | AK60: =Y60+AL$12*AI61 -> 0.6490253797
G61: =G46 -> 0.5 | AC61: Suma | AD61: =SUM(AD58:AD60) -> -0.001433044353 | AF61: =SUM(AF58:AF60) -> 12.77714461 | AI61: =-AD61/AF61 -> 0.0001121568548
J62: =AK53 -> 0.3614323167
P63: =P48 -> 0.6
V65: Iteración | Y65: =Y50+1 -> 4
H66: =H51 -> 0.4 | AD66: KQ2 | AF66: 2|KQ| | AK66: Q
J67: =J52 -> 150 | M67: =AK74 -> 0.5509640549 | R67: =R52 -> 1.2 | V67: Q | W67: 12 | X67: = | Y67: =AK52 -> 0.6385676833 | AD67: =$AK$8*$AI$8*Y67^2 -> -2.047667535 | AF67: =2*$AI$8*Y67 -> 6.413314011 | AK67: =Y67+$AK$8*AI70 -> 0.6385390212
K68: =K53 -> 0.6 | V68: Q | W68: 14 | X68: = | Y68: =AK53 -> 0.3614323167 | AD68: =$AK$9*$AI$9*Y68^2 -> 1.311986999 | AF68: =2*$AI$9*Y68 -> 7.259931879 | AK68: =Y68+$AK$9*AI70 -> 0.3614609788
E69: =AK67 -> 0.6385390212 | V69: Q | W69: 42 | X69: = | Y69: =AK58 -> 0.312406937 | AD69: =$AK$10*$AI$10*Y69^2 -> 0.7351537375 | AF69: =2*$AI$10*Y69 -> 4.70638549 | AI69: DQ | AK69: =Y69+$AK$10*AI70 -> 0.3124355991
H70: =AK69 -> 0.3124355991 | J70: =AK73 -> 0.3124250337 | AC70: Suma | AD70: =SUM(AD67:AD69) -> -0.0005267987562 | AF70: =SUM(AF67:AF69) -> 18.37963138 | AI70: =-AD70/AF70 -> 2.866209585e-05
D71: =D56 -> 100 | P71: =AK75 -> 0.6490359451
F72: =F57 -> 0.5 | K72: =K57 -> 150 | AD72: KQ2 | AF72: 2|KQ| | AK72: Q
B73: =B58 -> 1 | J73: =J58 -> 0.5 | M73: =M58 -> 200 | V73: Q | W73: 42 | X73: = | Y73: =AK69 -> 0.3124355991 | AD73: =$AL$10*$AI$10*Y73^2 -> -0.7352886385 | AF73: =2*$AI$10*Y73 -> 4.706817282 | AK73: =Y73+AL$10*AI76 -> 0.3124250337
O74: =O59 -> 0.6 | V74: Q | W74: 25 | X74: = | Y74: =AK59 -> 0.5509746203 | AD74: =$AL$11*$AI$11*Y74^2 -> -0.8647688583 | AF74: =2*$AI$11*Y74 -> 3.139051515 | AK74: =Y74+AL$11*AI76 -> 0.5509640549
I75: =I60 -> 200 | V75: Q | W75: 45 | X75: = | Y75: =AK60 -> 0.6490253797 | AD75: =$AL$12*$AI$12*Y75^2 -> 1.599922513 | AF75: =2*$AI$12*Y75 -> 4.930230968 | AI75: DQ | AK75: =Y75+AL$12*AI76 -> 0.6490359451
G76: =G61 -> 0.5 | AC76: Suma | AD76: =SUM(AD73:AD75) -> -0.0001349838676 | AF76: =SUM(AF73:AF75) -> 12.77609976 | AI76: =-AD76/AF76 -> 1.056534232e-05
J77: =AK68 -> 0.3614609788
P78: =P63 -> 0.6
V80: Iteración | Y80: =Y65+1 -> 5
H81: =H66 -> 0.4 | AD81: KQ2 | AF81: 2|KQ| | AK81: Q
J82: =J67 -> 150 | M82: =AK89 -> 0.5509630584 | R82: =R67 -> 1.2 | V82: Q | W82: 12 | X82: = | Y82: =AK67 -> 0.6385390212 | AD82: =$AK$8*$AI$8*Y82^2 -> -2.04748372 | AF82: =2*$AI$8*Y82 -> 6.413026149 | AK82: =Y82+$AK$8*AI85 -> 0.6385363163
K83: =K68 -> 0.6 | V83: Q | W83: 14 | X83: = | Y83: =AK68 -> 0.3614609788 | AD83: =$AK$9*$AI$9*Y83^2 -> 1.312195092 | AF83: =2*$AI$9*Y83 -> 7.260507602 | AK83: =Y83+$AK$9*AI85 -> 0.3614636837
E84: =AK82 -> 0.6385363163 | V84: Q | W84: 42 | X84: = | Y84: =AK73 -> 0.3124250337 | AD84: =$AK$10*$AI$10*Y84^2 -> 0.7352389102 | AF84: =2*$AI$10*Y84 -> 4.706658116 | AI84: DQ | AK84: =Y84+$AK$10*AI85 -> 0.3124277387
H85: =AK84 -> 0.3124277387 | J85: =AK88 -> 0.3124267421 | AC85: Suma | AD85: =SUM(AD82:AD84) -> -4.971798162e-05 | AF85: =SUM(AF82:AF84) -> 18.38019187 | AI85: =-AD85/AF85 -> 2.704976204e-06
D86: =D71 -> 100 | P86: =AK90 -> 0.6490369416
F87: =F72 -> 0.5 | K87: =K72 -> 150 | AD87: KQ2 | AF87: 2|KQ| | AK87: Q
B88: =B73 -> 1 | J88: =J73 -> 0.5 | M88: =M73 -> 200 | V88: Q | W88: 42 | X88: = | Y88: =AK84 -> 0.3124277387 | AD88: =$AL$10*$AI$10*Y88^2 -> -0.7352516417 | AF88: =2*$AI$10*Y88 -> 4.706698866 | AK88: =Y88+AL$10*AI91 -> 0.3124267421
O89: =O74 -> 0.6 | V89: Q | W89: 25 | X89: = | Y89: =AK74 -> 0.5509640549 | AD89: =$AL$11*$AI$11*Y89^2 -> -0.8647356934 | AF89: =2*$AI$11*Y89 -> 3.138991321 | AK89: =Y89+AL$11*AI91 -> 0.5509630584
I90: =I75 -> 200 | V90: Q | W90: 45 | X90: = | Y90: =AK75 -> 0.6490359451 | AD90: =$AL$12*$AI$12*Y90^2 -> 1.599974603 | AF90: =2*$AI$12*Y90 -> 4.930311226 | AI90: DQ | AK90: =Y90+AL$12*AI91 -> 0.6490369416
G91: =G76 -> 0.5 | AC91: Suma | AD91: =SUM(AD88:AD90) -> -1.273218814e-05 | AF91: =SUM(AF88:AF90) -> 12.77600141 | AI91: =-AD91/AF91 -> 9.965706587e-07
J92: =AK83 -> 0.3614636837
P93: =P78 -> 0.6
V95: Iteración | Y95: =Y80+1 -> 6
H96: =H81 -> 0.4 | AD96: KQ2 | AF96: 2|KQ| | AK96: Q
J97: =J82 -> 150 | M97: =AK104 -> 0.5509629644 | R97: =R82 -> 1.2 | V97: Q | W97: 12 | X97: = | Y97: =AK82 -> 0.6385363163 | AD97: =$AK$8*$AI$8*Y97^2 -> -2.047466373 | AF97: =2*$AI$8*Y97 -> 6.412998983 | AK97: =Y97+$AK$8*AI100 -> 0.6385360611
K98: =K83 -> 0.6 | V98: Q | W98: 14 | X98: = | Y98: =AK83 -> 0.3614636837 | AD98: =$AK$9*$AI$9*Y98^2 -> 1.312214732 | AF98: =2*$AI$9*Y98 -> 7.260561936 | AK98: =Y98+$AK$9*AI100 -> 0.3614639389
E99: =AK97 -> 0.6385360611 | V99: Q | W99: 42 | X99: = | Y99: =AK88 -> 0.3124267421 | AD99: =$AK$10*$AI$10*Y99^2 -> 0.7352469511 | AF99: =2*$AI$10*Y99 -> 4.706683853 | AI99: DQ | AK99: =Y99+$AK$10*AI100 -> 0.3124269973
H100: =AK99 -> 0.3124269973 | J100: =AK103 -> 0.3124269033 | AC100: Suma | AD100: =SUM(AD97:AD99) -> -4.690458651e-06 | AF100: =SUM(AF97:AF99) -> 18.38024477 | AI100: =-AD100/AF100 -> 2.55190217e-07
D101: =D86 -> 100 | P101: =AK105 -> 0.6490370356
F102: =F87 -> 0.5 | K102: =K87 -> 150 | AD102: KQ2 | AF102: 2|KQ| | AK102: Q
B103: =B88 -> 1 | J103: =J88 -> 0.5 | M103: =M88 -> 200 | V103: Q | W103: 42 | X103: = | Y103: =AK99 -> 0.3124269973 | AD103: =$AL$10*$AI$10*Y103^2 -> -0.7352481522 | AF103: =2*$AI$10*Y103 -> 4.706687697 | AK103: =Y103+AL$10*AI106 -> 0.3124269033
O104: =O89 -> 0.6 | V104: Q | W104: 25 | X104: = | Y104: =AK89 -> 0.5509630584 | AD104: =$AL$11*$AI$11*Y104^2 -> -0.8647325652 | AF104: =2*$AI$11*Y104 -> 3.138985644 | AK104: =Y104+AL$11*AI106 -> 0.5509629644
I105: =I90 -> 200 | V105: Q | W105: 45 | X105: = | Y105: =AK90 -> 0.6490369416 | AD105: =$AL$12*$AI$12*Y105^2 -> 1.599979516 | AF105: =2*$AI$12*Y105 -> 4.930318796 | AI105: DQ | AK105: =Y105+AL$12*AI106 -> 0.6490370356
G106: =G91 -> 0.5 | AC106: Suma | AD106: =SUM(AD103:AD105) -> -1.201106702e-06 | AF106: =SUM(AF103:AF105) -> 12.77599214 | AI106: =-AD106/AF106 -> 9.401279284e-08
J107: =AK98 -> 0.3614639389
P108: =P93 -> 0.6 | V108: Chequeo
V110: Q | W110: 1 | X110: = | Y110: =B103-E99-J107 -> 0 | AA110: Malla 1 | AD110: =AD100 -> -4.690458651e-06
V111: Q | W111: 2 | X111: = | Y111: =E99+J100-H96-M97 -> 0 | AA111: Malla 2 | AD111: =AD106 -> -1.201106702e-06
V112: Q | W112: 4 | X112: = | Y112: =P108+J107-P101-J100 -> 0
V113: Q | W113: 5 | X113: = | Y113: =P101+M97-R97 -> 0
